bitfinex/quotes_ETHUSD_20250923
["timestamp","ask_amount","ask_price","bid_price","bid_amount"]
[1758601459079,4.67071119,4178.1,4178.0,4.01]
[1758601459473,2.27727877,4178.1,4178.0,4.01]
[1758601460089,2.27742087,4178.1,4178.0,4.01]
[1758601460253,2.27742087,4178.1,4177.9,0.1192]
[1758601460581,0.86914033,4178.0,4177.9,0.1192]
[1758601460877,0.64648532,4178.0,4177.9,0.1192]
[1758601463086,0.88648532,4178.0,4177.9,0.1192]
[1758601463393,1.10897639,4178.0,4177.9,0.1192]
[1758601463747,1.82845692,4178.0,4177.9,0.1192]
[1758601465181,1.58845692,4178.0,4177.9,0.1192]
[1758601466178,1.36596585,4178.0,4177.9,0.8117]
[1758601467755,1.36596585,4178.0,4177.9,0.3444]
[1758601467957,1.36596585,4178.0,4177.9,0.1192]
[1758601468359,1.58864207,4178.0,4177.9,0.1192]
[1758601468959,1.36596585,4178.0,4177.9,0.1192]
[1758601469361,1.58864137,4178.0,4177.9,0.1192]
[1758601470493,1.36596585,4178.0,4177.9,0.1192]
[1758601470687,1.58865961,4178.0,4177.9,0.1192]
[1758601470888,1.36596585,4178.0,4177.9,0.1192]
[1758601471898,1.36596585,4178.0,4177.9,0.8117]
[1758601472098,1.36596585,4178.0,4177.9,0.5865]
[1758601472312,13.88696138,4178.0,4177.9,0.1192]
[1758601472516,14.12696138,4178.0,4177.9,0.1192]
[1758601472814,13.88696138,4178.0,4177.9,0.1192]
[1758601473115,14.57476138,4178.0,4177.9,0.1192]
[1758601476384,14.57463762,4178.0,4177.9,0.1192]
[1758601476714,1.58852594,4178.0,4177.9,0.1192]
[1758601476924,1.58852594,4178.0,4177.9,0.8117]
[1758601478241,0.51289232,4178.0,4177.9,0.8117]
[1758601478536,0.001,4178.1,4177.9,0.8117]
[1758601478728,0.001,4178.1,4178.0,0.71643489]
[1758601478899,0.51389647,4178.1,4178.0,1.41681806]
[1758601480350,0.51389647,4178.1,4178.0,5.42581806]
[1758601480505,0.64745395,4178.1,4178.0,4.7015]
[1758601480712,0.51389647,4178.1,4178.0,4.7015]
[1758601484944,0.64751129,4178.1,4178.0,4.7015]
[1758601485148,0.51389647,4178.1,4178.0,4.7015]
[1758601492455,0.51389647,4178.1,4178.0,4.2342]
[1758601492623,0.64751527,4178.1,4178.0,4.009]
[1758601493023,0.64753154,4178.1,4178.0,4.009]
[1758601494228,0.64753154,4178.1,4178.0,4.2357]
[1758601495283,0.64753154,4178.1,4178.0,4.6811]
[1758601495783,0.51389647,4178.1,4178.0,4.6811]
[1758601496086,0.6475213,4178.1,4178.0,4.6811]
[1758601497084,0.51389647,4178.1,4178.0,4.6811]
[1758601497451,0.64753134,4178.1,4178.0,4.6811]
[1758601498387,0.64753523,4178.1,4178.0,4.6811]
[1758601498883,0.64753523,4178.1,4178.0,4.2397]
[1758601499088,0.64753523,4178.1,4178.0,4.013]
[1758601499455,0.64753523,4178.1,4178.0,4.6811]
[1758601500051,0.64753523,4178.1,4178.0,4.2397]
[1758601500251,0.64753523,4178.1,4178.0,4.013]
[1758601501148,0.51389647,4178.1,4178.0,4.2397]
[1758601501567,0.51389647,4178.1,4178.0,4.013]
[1758601501777,0.51389647,4178.1,4178.0,4.2397]
[1758601501979,0.51389647,4178.1,4178.0,4.6811]
[1758601503158,0.64757543,4178.1,4178.0,4.6811]
[1758601503361,0.51389647,4178.1,4178.0,4.6811]
[1758601503596,0.001,4178.1,4178.0,4.6811]
[1758601504098,0.001,4178.1,4178.0,7.0745897]
[1758601504395,0.001,4178.1,4178.0,4.6811]
[1758601505165,0.001,4178.1,4178.0,4.70503489]
[1758601505803,0.001,4178.1,4178.0,4.70303489]
[1758601507060,0.001,4178.1,4178.0,8.26486434]
[1758601507264,0.001,4178.1,4178.0,8.24092945]
[1758601508399,0.001,4178.1,4178.0,5.17933975]
[1758601508586,0.001,4178.1,4178.0,7.79952945]
[1758601508993,0.001,4178.1,4178.0,8.24092945]
[1758601518023,0.001,4178.1,4178.0,8.59152945]
[1758601518223,0.001,4178.1,4178.0,9.04952945]
[1758601520036,0.001,4178.1,4178.0,7.57282945]
[1758601520343,0.247,4178.1,4178.0,4.011]
[1758601521905,0.247,4178.1,4178.0,6.4044897]
[1758601523341,0.001,4178.1,4178.0,6.4044897]
[1758601523541,0.001,4178.1,4178.0,6.6488897]
[1758601523740,0.001,4178.1,4178.0,6.4044897]
[1758601523941,0.001,4178.1,4178.0,7.1068897]
[1758601525556,0.001,4178.1,4178.0,4.7134]
[1758601525851,0.001,4178.1,4178.0,4.011]
[1758601526033,0.247,4178.1,4178.0,4.011]
[1758601529864,0.001,4178.1,4178.0,4.011]
[1758601532483,0.001,4178.1,4178.0,6.4044897]
[1758601532790,0.001,4178.1,4178.0,8.2060176]
[1758601532948,0.001,4178.1,4178.0,9.1172176]
[1758601534952,0.001,4178.1,4178.0,12.1172176]
[1758601536580,0.001,4178.1,4178.0,12.21310487]
[1758601536890,0.001,4178.1,4178.0,12.1172176]
[1758601537750,0.001,4178.1,4178.0,7.4078176]
[1758601537953,0.001,4178.1,4178.0,8.5896897]
[1758601538150,0.247,4178.1,4178.0,8.5896897]
[1758601538386,0.247,4178.1,4178.0,6.1962]
[1758601538555,0.6894,4178.1,4178.0,6.1962]
[1758601538954,0.247,4178.1,4178.0,6.1962]
[1758601541090,0.247,4178.1,4178.0,8.5896897]
[1758601542520,0.247,4178.1,4178.0,0.1232]
[1758601542705,0.247,4178.1,4178.0,6.1962]
[1758601543922,0.247,4178.1,4178.0,8.5896897]
[1758601544612,0.247,4178.1,4178.0,6.1962]
[1758601545923,0.7021,4178.1,4178.0,6.1962]
[1758601547643,0.7021,4178.1,4178.0,2.1922]
[1758601547848,0.7021,4178.1,4178.0,6.1952]
[1758601548047,0.7021,4178.1,4178.0,0.1232]
[1758601548235,0.7021,4178.1,4178.0,4.1262]
[1758601553230,0.247,4178.1,4178.0,4.1262]
[1758601557573,2.04948399,4178.1,4178.0,0.004]
[1758601557786,5.20671566,4178.1,4178.0,0.004]
[1758601557941,2.95851036,4178.1,4178.0,2.307]
[1758601558154,2.31391111,4178.1,4178.0,2.307]
[1758601558589,2.76901111,4178.1,4178.0,2.307]
[1758601560750,0.72052712,4178.1,4178.0,2.307]
[1758601561180,3.80415954,4178.1,4178.0,0.004]
[1758601561394,4.56749449,4178.1,4178.0,0.004]
[1758601561900,7.56749449,4178.1,4178.0,0.004]
[1758601562100,9.77971133,4178.1,4178.0,0.004]
[1758601562624,5.3934897,4178.0,4177.8,0.004]
[1758601562823,5.3934897,4178.0,4177.6,0.004]
[1758601562824,5.39366158,4177.7,4177.6,0.004]
[1758601563115,10.26251847,4177.7,4177.6,0.004]
[1758601563266,10.95271847,4177.7,4177.6,0.004]
[1758601563472,12.25669215,4177.7,4177.6,0.004]
[1758601564671,12.03497021,4177.7,4177.6,0.004]
[1758601565667,12.25646315,4177.7,4177.6,0.004]
[1758601566104,2.39371888,4177.6,4177.5,0.004]
[1758601566347,6.25942902,4177.6,4177.5,0.004]
[1758601566478,8.25007067,4177.6,4177.5,0.004]
[1758601566673,8.94027067,4177.6,4177.5,0.004]
[1758601567408,9.16185604,4177.6,4177.5,0.004]
[1758601568271,8.94027067,4177.6,4177.5,0.004]
[1758601570221,8.94027067,4177.6,4176.3,0.1192]
[1758601570222,3.0,4177.5,4176.1,0.02]
[1758601570535,3.0,4177.5,4175.0,0.021]
[1758601570536,3.0,4176.1,4175.0,0.021]
[1758601570729,14.55643699,4175.2,4175.0,0.021]
[1758601571097,14.79153699,4175.2,4175.0,0.021]
[1758601571432,14.79153699,4175.2,4174.1,0.2493]
[1758601571433,2.39551473,4174.5,4174.1,0.2493]
[1758601571594,20.13420508,4175.2,4174.1,0.2493]
[1758601571595,12.16134215,4174.2,4174.1,0.2493]
[1758601572016,0.47,4174.5,4174.2,2.39566863]
[1758601572215,0.47,4174.5,4174.4,2.39555385]
[1758601572443,12.16134215,4175.1,4174.5,2.39548015]
[1758601572608,12.16134215,4175.1,4174.6,2.3954335]
[1758601572803,12.16134215,4175.1,4174.7,0.6993]
[1758601573010,12.16134215,4175.1,4174.8,0.6993]
[1758601573233,12.16134215,4175.1,4174.1,0.02]
[1758601573234,14.22407942,4175.1,4174.1,0.02]
[1758601573432,12.16134215,4174.6,4174.3,0.6993]
[1758601573937,12.16134215,4174.6,4174.4,0.6993]
[1758601574132,0.7200988,4174.5,4174.1,4.023]
[1758601574338,0.7200988,4174.5,4174.2,2.39561306]
[1758601574635,0.7200988,4174.5,4174.4,2.39555385]
[1758601574844,0.7200988,4174.5,4174.2,0.6993]
[1758601575001,0.7200988,4174.5,4174.4,2.39555385]
[1758601575204,0.7200988,4174.5,4174.4,3.09485385]
[1758601575414,0.7200988,4174.5,4174.4,0.6993]
[1758601575835,0.7200988,4174.5,4174.4,3.86758524]
[1758601576038,0.7200988,4174.5,4174.4,0.2293]
[1758601576237,0.7200988,4174.5,4174.1,4.034]
[1758601576532,12.16134215,4174.2,4174.1,4.034]
[1758601577096,12.16134215,4174.2,4174.1,4.2667]
[1758601578903,12.16134215,4174.2,4174.1,4.034]
[1758601581500,12.39444215,4174.2,4174.1,4.034]
[1758601582244,13.7637578,4174.2,4174.1,4.034]
[1758601583136,13.5306578,4174.2,4174.1,0.02]
[1758601583344,12.16134215,4174.2,4174.1,0.2527]
[1758601583638,12.16134215,4174.2,4174.1,0.6906]
[1758601583838,12.16134215,4174.2,4174.1,0.2567]
[1758601584039,12.16134215,4174.2,4174.1,0.024]
[1758601586038,12.16134215,4174.2,4174.1,0.2567]
[1758601586269,12.16134215,4174.2,4174.1,0.6906]
[1758601587281,12.16134215,4174.2,4174.1,3.08632602]
[1758601587459,0.72019388,4174.3,4174.2,2.39566863]
[1758601587640,12.16134215,4174.6,4174.1,0.5771]
[1758601587845,12.16134215,4174.2,4174.1,0.024]
[1758601590180,12.66905259,4174.2,4174.1,0.024]
[1758601590775,0.50771044,4174.2,4174.1,0.024]
[1758601595460,0.64033076,4174.2,4174.1,0.024]
[1758601596408,0.86149199,4174.2,4174.1,0.024]
[1758601597190,0.64033076,4174.2,4174.1,0.024]
[1758601597394,0.86159953,4174.2,4174.1,0.024]
[1758601598497,1.49905223,4174.2,4174.1,0.024]
[1758601599298,0.86159953,4174.2,4174.1,0.024]
[1758601600197,3.94976816,4174.2,4174.1,0.024]
[1758601600398,3.41176756,4174.2,4174.1,0.024]
[1758601600709,4.07313079,4174.2,4174.1,0.024]
[1758601600914,2.13686216,4174.2,4174.1,0.024]
[1758601601076,3.41562507,4174.2,4174.1,0.024]
[1758601601276,5.8112937,4174.2,4174.1,0.024]
[1758601601516,16.69387294,4174.2,4174.1,0.024]
[1758601602479,2.39595562,4173.7,4173.6,0.004]
[1758601602812,18.5380973,4173.7,4173.6,0.004]
[1758601602990,19.2305973,4173.7,4173.6,0.004]
[1758601604278,20.50874325,4173.7,4173.6,0.004]
[1758601605514,19.23166621,4173.7,4173.6,0.004]
[1758601605717,20.86112042,4173.7,4173.6,0.004]
[1758601607426,22.13829671,4173.7,4173.6,0.004]
[1758601608212,22.12759671,4173.7,4173.6,0.004]
[1758601609002,26.13659671,4173.7,4173.6,0.004]
[1758601610322,24.85942042,4173.7,4173.6,0.004]
[1758601610841,24.41679073,4173.7,4173.6,0.004]
[1758601611013,24.86549073,4173.7,4173.6,0.004]
[1758601612550,20.85649073,4173.7,4173.6,0.004]
[1758601612759,24.86649073,4173.7,4173.6,0.004]
[1758601614351,25.71722197,4173.7,4173.6,0.004]
[1758601615460,24.86649073,4173.7,4173.6,0.004]
[1758601615640,24.41779073,4173.7,4173.6,0.004]
[1758601616768,22.79153914,4173.7,4173.6,0.004]
[1758601617434,23.42960608,4173.7,4173.6,0.004]
[1758601617638,19.18330608,4173.7,4173.6,0.004]
[1758601618267,23.19130608,4173.7,4173.6,0.004]
[1758601618428,22.55323914,4173.7,4173.6,0.004]
[1758601618831,22.78953914,4173.7,4173.6,0.004]
[1758601619887,22.55323914,4173.7,4173.6,0.004]
[1758601620401,23.23823914,4173.7,4173.6,0.004]
[1758601620877,23.87630608,4173.7,4173.6,0.004]
[1758601621081,30.9361689,4173.7,4173.6,0.004]
[1758601621760,34.41125946,4173.7,4173.6,0.004]
[1758601621968,23.23810196,4173.7,4173.6,0.004]
[1758601622474,23.87630376,4173.7,4173.6,0.004]
[1758601623290,23.23810196,4173.7,4173.6,0.004]
[1758601624979,23.23810196,4173.7,4173.1,0.02]
[1758601624980,2.39618527,4173.3,4173.1,0.02]
[1758601625181,18.59673482,4173.2,4173.1,0.02]
[1758601625380,22.28173482,4173.2,4173.1,0.02]
[1758601625586,22.91991094,4173.2,4173.1,0.02]
[1758601625802,17.03303482,4173.2,4173.1,0.02]
[1758601625968,22.74676855,4173.2,4173.1,0.02]
[1758601626374,22.98306855,4173.2,4173.1,0.02]
[1758601627069,22.3450085,4173.2,4173.1,0.02]
[1758601627298,22.98306855,4173.2,4173.1,0.02]
[1758601628088,22.3450085,4173.2,4173.1,0.02]
[1758601628294,22.98306855,4173.2,4173.1,0.02]
[1758601632328,22.98292294,4173.2,4173.1,0.02]
[1758601633724,22.3450085,4173.2,4173.1,0.02]
[1758601633917,22.7937085,4173.2,4173.1,0.02]
[1758601634113,22.3450085,4173.2,4173.1,0.02]
[1758601634425,22.7937085,4173.2,4173.1,0.02]
[1758601635294,23.9327572,4173.2,4173.1,0.02]
[1758601635489,10.53509056,4172.2,4172.1,0.02]
[1758601635715,12.93190758,4172.2,4172.1,0.02]
[1758601636224,12.93190758,4172.2,4172.1,0.6882]
[1758601636925,15.93190758,4172.2,4172.1,0.6882]
[1758601637704,17.69426343,4172.2,4172.1,0.02]
[1758601637904,18.20458556,4172.2,4172.1,0.02]
[1758601638094,18.42603239,4172.2,4172.1,0.02]
[1758601638295,18.20458556,4172.2,4172.1,0.02]
[1758601639115,18.20458556,4172.2,4172.1,0.2574]
[1758601639725,18.20458556,4172.2,4172.1,0.6882]
[1758601641025,22.21358556,4172.2,4172.1,0.6882]
[1758601642138,22.21358556,4172.2,4172.1,0.2574]
[1758601642311,22.21358556,4172.2,4172.1,0.02]
[1758601643999,22.21358556,4172.2,4172.1,0.2574]
[1758601645139,22.21358556,4172.2,4172.1,0.6882]
[1758601645557,22.21358556,4172.2,4172.1,0.2574]
[1758601648546,22.21358556,4172.2,4172.1,0.6882]
[1758601648547,7.65222377,4172.2,4172.1,0.6882]
[1758601648722,20.58419079,4172.2,4172.1,0.6882]
[1758601649247,20.45128111,4172.2,4172.1,0.6882]
[1758601649544,20.58418922,4172.2,4172.1,0.6882]
[1758601650146,17.67699867,4172.2,4172.1,0.6882]
[1758601650350,20.07381569,4172.2,4172.1,0.6882]
[1758601650548,3.13290811,4172.2,4172.1,0.6882]
[1758601650749,3.0,4172.2,4172.1,0.6882]
[1758601651416,5.39681702,4172.2,4172.1,0.6882]
[1758601651947,3.0,4172.2,4172.1,0.6882]
[1758601652332,5.39681702,4172.2,4172.1,0.6882]
[1758601652852,3.0,4172.2,4172.1,0.6882]
[1758601653364,3.13315195,4172.2,4172.1,0.6882]
[1758601654159,3.64471912,4172.2,4172.1,0.6882]
[1758601654951,3.13315195,4172.2,4172.1,0.6882]
[1758601655273,3.64479923,4172.2,4172.1,0.6882]
[1758601656058,0.64479923,4172.2,4172.1,0.6882]
[1758601656370,0.72047926,4172.3,4172.1,0.6882]
[1758601656582,0.72047926,4172.3,4172.2,0.6682]
[1758601656876,0.72047926,4172.3,4172.2,0.7874]
[1758601660400,0.72047926,4172.3,4172.2,3.18421702]
[1758601660992,3.0,4172.9,4172.3,2.39675585]
[1758601661162,0.72037373,4172.3,4172.2,0.1192]
[1758601661361,0.72037373,4172.3,4172.2,2.39681702]
[1758601661582,0.72037373,4172.3,4172.2,2.99778663]
[1758601661803,0.72037373,4172.3,4172.2,3.66598663]
[1758601664493,3.51148288,4173.0,4172.4,2.39667997]
[1758601664691,3.0,4173.0,4172.7,0.1192]
[1758601664865,3.0,4173.0,4172.8,0.6682]
[1758601665065,0.72035643,4172.9,4172.8,0.6682]
[1758601665480,0.72035643,4172.9,4172.8,0.2374]
[1758601665997,0.72035643,4172.9,4172.7,0.1192]
[1758601667397,0.72035643,4172.9,4172.7,0.354]
[1758601669390,0.72035643,4172.9,4172.7,0.7946]
[1758601676405,2.39647239,4172.8,4172.7,0.354]
[1758601676592,3.11678805,4172.9,4172.7,0.354]
[1758601676793,5.39643162,4172.9,4172.7,0.354]
[1758601676992,0.4406,4172.8,4172.7,0.354]
[1758601678225,0.4406,4172.8,4172.7,0.7946]
[1758601679528,0.4406,4172.8,4172.7,0.354]
[1758601681297,0.4406,4172.8,4172.7,0.7946]
[1758601682305,0.001,4173.1,4172.7,0.7946]
[1758601682530,0.001,4173.1,4172.9,0.1192]
[1758601682731,0.72032011,4173.0,4172.9,0.1192]
[1758601683098,0.72032011,4173.0,4172.9,0.7946]
[1758601685243,0.72032011,4173.0,4172.9,0.354]
[1758601685449,0.001,4173.1,4172.9,0.7946]
[1758601685745,0.72129243,4173.1,4173.0,0.6754]
[1758601685943,1.36642646,4173.1,4173.0,0.6754]
[1758601686664,1.36642646,4173.1,4172.9,0.1192]
[1758601686848,0.64523087,4173.0,4172.9,0.1192]
[1758601687046,0.13329227,4173.0,4172.9,0.1192]
[1758601687219,1.08585961,4173.0,4172.9,0.1192]
[1758601687744,4.39655872,4173.0,4172.6,0.004]
[1758601687944,1.09125961,4172.9,4172.7,0.1192]
[1758601688116,0.64525961,4172.8,4172.7,0.1192]
[1758601688319,0.89145961,4172.8,4172.7,0.1192]
[1758601688517,2.39652982,4172.7,4172.6,0.004]
[1758601688741,3.04178943,4172.7,4172.6,0.004]
[1758601688947,3.70993645,4172.7,4172.6,0.004]
[1758601689150,3.95613645,4172.7,4172.6,0.004]
[1758601689348,6.39645229,4172.7,4172.6,0.004]
[1758601690048,9.39645229,4172.7,4172.6,0.004]
[1758601690215,10.03441044,4172.7,4172.6,0.004]
[1758601690431,14.04141044,4172.7,4172.6,0.004]
[1758601690633,13.40345229,4172.7,4172.6,0.004]
[1758601692245,14.25418353,4172.7,4172.6,0.004]
[1758601692972,14.54250099,4172.7,4172.6,0.004]
[1758601693172,15.39429224,4172.7,4172.6,0.004]
[1758601693871,11.04024354,4172.7,4172.6,0.004]
[1758601694046,16.32824354,4172.7,4172.6,0.004]
[1758601694944,10.24824354,4172.7,4172.6,0.004]
[1758601695147,13.40345229,4172.7,4172.6,0.004]
[1758601698214,9.39645229,4172.7,4172.6,0.004]
[1758601698400,13.40345229,4172.7,4172.6,0.004]
[1758601701515,13.40237912,4172.7,4172.6,0.004]
[1758601702383,9.39537912,4172.7,4172.6,0.004]
[1758601702582,13.40237912,4172.7,4172.6,0.004]
[1758601704201,25.77974794,4172.7,4172.6,0.004]
[1758601708513,26.21174794,4172.7,4172.6,0.004]
[1758601708822,9.34099838,4172.7,4172.6,0.004]
[1758601709028,23.1002321,4172.7,4172.6,0.004]
[1758601709239,23.7714321,4172.7,4172.6,0.004]
[1758601709409,23.7714321,4172.7,4172.1,0.02]
[1758601709410,5.39658725,4172.6,4172.1,0.02]
[1758601709748,17.58936658,4172.2,4172.1,0.02]
[1758601709933,23.25470004,4172.2,4172.1,0.02]
[1758601710132,2.39727669,4171.4,4171.3,0.4571]
[1758601710332,21.59682625,4171.4,4171.3,0.4571]
[1758601710662,5.39733416,4171.3,4171.1,0.02]
[1758601710846,6.40439163,4171.2,4171.1,0.02]
[1758601711212,9.40439163,4171.2,4171.1,0.02]
[1758601711456,10.22282114,4171.2,4171.1,0.02]
[1758601711637,11.53703577,4171.2,4171.1,0.02]
[1758601711944,19.51199273,4171.2,4171.1,0.02]
[1758601712147,23.27979273,4171.2,4171.1,0.02]
[1758601713142,23.72958533,4171.2,4171.1,0.02]
[1758601713344,23.95095002,4171.2,4171.1,0.02]
[1758601713544,19.27275002,4171.2,4171.1,0.02]
[1758601713708,23.51891604,4171.2,4171.1,0.02]
[1758601714846,19.27271604,4171.2,4171.1,0.02]
[1758601715151,19.27272556,4171.2,4171.1,0.02]
[1758601715339,23.27972556,4171.2,4171.1,0.02]
[1758601716313,19.27272556,4171.2,4171.1,0.02]
[1758601716510,23.27972556,4171.2,4171.1,0.02]
[1758601717541,23.51892556,4171.2,4171.1,0.02]
[1758601717735,23.95106193,4171.2,4171.1,0.02]
[1758601718549,23.51906193,4171.2,4171.1,0.02]
[1758601719333,19.51206193,4171.2,4171.1,0.02]
[1758601719519,23.51906193,4171.2,4171.1,0.02]
[1758601720037,23.95106193,4171.2,4171.1,0.02]
[1758601721153,24.15691525,4171.2,4171.1,0.02]
[1758601721571,25.38091525,4171.2,4171.1,0.02]
[1758601721733,24.74306193,4171.2,4171.1,0.02]
[1758601721921,24.7430863,4171.2,4171.1,0.02]
[1758601722122,25.38091334,4171.2,4171.1,0.02]
[1758601722563,24.3110863,4171.2,4171.1,0.02]
[1758601722856,24.74311851,4171.2,4171.1,0.02]
[1758601723056,20.30411851,4171.2,4171.1,0.02]
[1758601723225,23.91794547,4171.2,4171.1,0.02]
[1758601723849,24.15714547,4171.2,4171.1,0.02]
[1758601725061,23.91801095,4171.2,4171.1,0.02]
[1758601725358,23.51918399,4171.2,4171.1,0.02]
[1758601725934,19.27298399,4171.2,4171.1,0.02]
[1758601726140,23.91780133,4171.2,4171.1,0.7117]
[1758601726324,23.27998399,4171.2,4171.1,0.7117]
[1758601726832,23.27998399,4171.2,4171.1,0.02]
[1758601727334,23.27998399,4171.2,4171.1,0.2641]
[1758601727961,19.27298399,4171.2,4171.1,0.2641]
[1758601728185,23.27998399,4171.2,4171.1,0.7117]
[1758601729052,19.27298399,4171.2,4171.1,0.7117]
[1758601729373,10.04748322,4171.2,4171.1,0.7117]
[1758601730463,10.16802904,4171.2,4171.1,0.7117]
[1758601731296,10.50869563,4171.2,4171.1,0.7117]
[1758601731640,10.50869563,4171.2,4171.1,0.2641]
[1758601731880,10.28722904,4171.2,4171.1,0.2641]
[1758601732274,10.28722904,4171.2,4171.1,0.7117]
[1758601732776,10.50874337,4171.2,4171.1,0.02]
[1758601733258,10.50874337,4171.2,4171.1,0.7117]
[1758601734537,10.50874337,4171.2,4171.1,0.02]
[1758601735163,10.50874337,4171.2,4171.1,0.2641]
[1758601735363,10.50874337,4171.2,4171.1,0.02]
[1758601735773,10.50874337,4171.2,4171.1,0.7117]
[1758601736859,10.38819755,4171.2,4171.1,0.7117]
[1758601737658,3.98380592,4171.2,4171.1,0.7117]
[1758601737861,6.04048322,4171.2,4171.1,0.7117]
[1758601738350,6.04072772,4171.2,4171.1,0.7117]
[1758601738550,3.04072772,4171.2,4171.1,0.7117]
[1758601739150,3.2628306,4171.2,4171.1,0.7117]
[1758601739884,3.04072772,4171.2,4171.1,0.7117]
[1758601740051,0.64333609,4171.2,4171.1,0.7117]
[1758601740252,3.26288501,4171.2,4171.1,0.7117]
[1758601741162,0.86560671,4171.2,4171.1,0.7117]
[1758601742079,0.64344942,4171.2,4171.1,0.7117]
[1758601742885,3.04084105,4171.2,4171.1,0.7117]
[1758601743088,0.64344942,4171.2,4171.1,0.7117]
[1758601743398,3.04084105,4171.2,4171.1,0.7117]
[1758601744198,3.26291991,4171.2,4171.1,0.02]
[1758601745760,3.04084105,4171.2,4171.1,0.02]
[1758601746362,3.26284496,4171.2,4171.1,0.02]
[1758601746763,9.68580914,4171.2,4171.1,0.02]
[1758601746963,10.25870914,4171.2,4171.1,0.02]
[1758601749584,9.80500914,4171.2,4171.1,0.02]
[1758601750303,9.80500914,4171.2,4171.1,0.024]
[1758601753710,9.57850914,4171.2,4171.1,0.024]
[1758601754611,5.57150914,4171.2,4171.1,0.024]
[1758601754830,9.57850914,4171.2,4171.1,0.024]
[1758601755180,9.80500914,4171.2,4171.1,0.024]
[1758601758119,10.44282648,4171.2,4171.1,0.024]
[1758601760713,9.80380914,4171.2,4171.1,0.024]
[1758601760913,17.32560914,4171.2,4171.1,0.024]
[1758601761302,18.17740039,4171.2,4171.1,0.024]
[1758601762331,17.32560914,4171.2,4171.1,0.024]
[1758601762820,16.63850914,4171.2,4171.1,0.024]
[1758601763017,28.0369387,4171.2,4171.1,0.024]
[1758601763411,20.9769387,4171.2,4171.1,0.024]
[1758601763613,21.2022387,4171.2,4171.1,0.024]
[1758601764131,17.1952387,4171.2,4171.1,0.024]
[1758601764338,20.9769387,4171.2,4171.1,0.024]
[1758601764627,21.2022387,4171.2,4171.1,0.024]
[1758601764819,20.81080094,4171.2,4171.1,0.024]
[1758601764996,20.34900094,4171.2,4171.1,0.024]
[1758601765338,21.20187301,4171.2,4171.1,0.024]
[1758601765853,21.20196166,4171.2,4171.1,0.024]
[1758601766756,17.19496166,4171.2,4171.1,0.024]
[1758601767057,21.20196166,4171.2,4171.1,0.024]
[1758601770245,16.96966166,4171.2,4171.1,0.024]
[1758601770446,20.12378959,4171.2,4171.1,0.7307]
[1758601770622,16.11678959,4171.2,4171.1,0.7307]
[1758601770824,20.12378959,4171.2,4171.1,0.7307]
[1758601771024,16.11678959,4171.2,4171.1,0.024]
[1758601771254,20.00458959,4171.2,4171.1,0.2655]
[1758601771627,20.00455474,4171.2,4171.1,0.2655]
[1758601771959,20.00455474,4171.2,4171.1,0.024]
[1758601774680,20.00459515,4171.2,4171.1,0.024]
[1758601778288,20.00461595,4171.2,4171.1,0.024]
[1758601778586,21.08278802,4171.2,4171.1,0.024]
[1758601779461,20.22991595,4171.2,4171.1,0.024]
[1758601780266,21.08278802,4171.2,4171.1,0.024]
[1758601780696,20.85748802,4171.2,4171.1,0.024]
[1758601780871,21.08278802,4171.2,4171.1,0.024]
[1758601782481,20.22991595,4171.2,4171.1,0.024]
[1758601783064,20.69171595,4171.2,4171.1,0.024]
[1758601783775,20.22991595,4171.2,4171.1,0.024]
[1758601784091,20.22891595,4171.2,4171.1,0.024]
[1758601784670,27.28891595,4171.2,4171.1,0.024]
[1758601784870,23.28291595,4171.2,4171.1,0.024]
[1758601785065,27.91663888,4171.2,4171.1,0.024]
[1758601785470,20.85663888,4171.2,4171.1,0.024]
[1758601786999,20.00361595,4171.2,4171.1,0.024]
[1758601787374,21.105845,4171.2,4171.1,0.024]
[1758601788204,20.25261595,4171.2,4171.1,0.024]
[1758601788409,20.00361595,4171.2,4171.1,0.024]
[1758601789093,15.99761595,4171.2,4171.1,0.024]
[1758601789301,20.25261595,4171.2,4171.1,0.024]
[1758601792173,20.00361595,4171.2,4171.1,0.024]
[1758601792378,20.2531643,4171.2,4171.1,0.024]
[1758601795782,20.0041643,4171.2,4171.1,0.024]
[1758601796301,20.2531643,4171.2,4171.1,0.024]
[1758601796499,16.2471643,4171.2,4171.1,0.024]
[1758601796714,20.2531643,4171.2,4171.1,0.024]
[1758601798717,17.65951918,4171.2,4171.1,0.024]
[1758601798918,21.66551918,4171.2,4171.1,0.2565]
[1758601799813,21.66551918,4171.2,4171.1,0.024]
[1758601800489,21.91451918,4171.2,4171.1,0.024]
[1758601802008,21.66551918,4171.2,4171.1,0.024]
[1758601802323,3.26350832,4171.2,4171.1,0.024]
[1758601802613,7.38770832,4171.2,4171.1,0.7244]
[1758601803249,0.98531669,4171.2,4171.1,0.7244]
[1758601803546,0.86611669,4171.2,4171.1,0.7244]
[1758601803745,4.005,4171.5,4171.1,0.7244]
[1758601803746,0.72064541,4171.5,4171.1,0.7244]
[1758601803959,0.13357209,4171.4,4171.2,0.7004]
[1758601804107,4.64615291,4172.0,4171.3,0.7004]
[1758601804446,0.72057271,4171.8,4171.4,0.7004]
[1758601804609,0.13355069,4171.7,4171.5,0.7004]
[1758601804809,0.001,4172.1,4171.6,0.7004]
[1758601805005,0.64563244,4172.0,4171.6,0.7004]
[1758601805210,0.64563242,4171.9,4171.7,0.7004]
[1758601805410,3.11839949,4172.1,4171.2,2.39737843]
[1758601805640,0.64512116,4172.0,4171.8,0.7004]
[1758601805811,0.13329371,4171.9,4171.3,0.54213784]
[1758601806009,2.39693636,4172.0,4171.3,2.39732766]
[1758601806244,2.39693636,4172.0,4171.2,2.39739053]
[1758601806424,2.39693636,4172.0,4171.3,0.7004]